[Event "Early-Titled-Tuesday-Blitz-September-05-2023"]
[Site "Chess.com"]
[Date "2023.09.05"]
[Round "10"]
[White "viktorgen2021"]
[Black "Agibileg"]
[Result "0-1"]
[WhiteElo "2491"]
[BlackElo "2671"]
[TimeControl "180+1"]
[EndTime "9:53:47 PDT"]
[Termination "Agibileg won by checkmate"]

1. d4 {[%clk 0:03:00.9]} 1... Nf6 {[%clk 0:02:59.1]} 2. Nf3 {[%clk 0:03:00.4]}
2... g6 {[%clk 0:02:59]} 3. g3 {[%clk 0:03:00.4]} 3... Bg7 {[%clk 0:02:58.9]} 4.
Bg2 {[%clk 0:03:00.9]} 4... O-O {[%clk 0:02:58.3]} 5. O-O {[%clk 0:03:01.5]}
5... d6 {[%clk 0:02:58]} 6. a4 {[%clk 0:03:01.8]} 6... a5 {[%clk 0:02:57.5]} 7.
Nc3 {[%clk 0:03:01.5]} 7... Nbd7 {[%clk 0:02:54.5]} 8. e4 {[%clk 0:03:01.1]}
8... e5 {[%clk 0:02:53.5]} 9. h3 {[%clk 0:03:01.2]} 9... exd4 {[%clk 0:02:48]}
10. Nxd4 {[%clk 0:03:02.1]} 10... Re8 {[%clk 0:02:48.4]} 11. Re1 {[%clk
0:03:02.5]} 11... Nc5 {[%clk 0:02:48.6]} 12. Bf4 {[%clk 0:02:50]} 12... Bd7
{[%clk 0:02:48.6]} 13. Qd2 {[%clk 0:02:48.2]} 13... Qc8 {[%clk 0:02:28.6]} 14.
Kh2 {[%clk 0:02:45.3]} 14... Ne6 {[%clk 0:02:16.7]} 15. Be3 {[%clk 0:02:43.5]}
15... Nc5 {[%clk 0:02:09.4]} 16. Bg5 {[%clk 0:02:39.6]} 16... Re5 {[%clk
0:02:06]} 17. f4 {[%clk 0:02:18.9]} 17... Re8 {[%clk 0:02:05.2]} 18. e5 {[%clk
0:02:15.2]} 18... dxe5 {[%clk 0:01:57.7]} 19. fxe5 {[%clk 0:02:14.2]} 19... Nh5
{[%clk 0:01:57.2]} 20. g4 {[%clk 0:01:47]} 20... Rxe5 {[%clk 0:01:39]} 21. gxh5
{[%clk 0:01:42.7]} 21... Rxg5 {[%clk 0:01:36.1]} 22. Qxg5 {[%clk 0:01:35.7]}
22... Bxd4 {[%clk 0:01:37]} 23. Nd5 {[%clk 0:01:25]} 23... Qb8 {[%clk
0:01:16.9]} 24. Ne7+ {[%clk 0:01:03.7]} 24... Kg7 {[%clk 0:01:12.2]} 25. hxg6
{[%clk 0:00:58.5]} 25... hxg6 {[%clk 0:01:11.6]} 26. Rf1 {[%clk 0:00:27.6]}
26... c6+ {[%clk 0:01:05.9]} 27. Kh1 {[%clk 0:00:27.5]} 27... Qd6 {[%clk
0:00:59.5]} 28. Rad1 {[%clk 0:00:23.3]} 28... Rh8 {[%clk 0:00:56.4]} 29. c3
{[%clk 0:00:08.1]} 29... Bxh3 {[%clk 0:00:53.8]} 30. Rxd4 {[%clk 0:00:06.9]}
30... Bxg2+ {[%clk 0:00:39.1]} 31. Kxg2 {[%clk 0:00:06.9]} 31... Qh2+ {[%clk
0:00:38.8]} 32. Kf3 {[%clk 0:00:07.4]} 32... Rh3+ {[%clk 0:00:39]} 33. Kg4
{[%clk 0:00:03.6]} 33... Qg3# {[%clk 0:00:37.8]} 0-1

[Event "Early-Titled-Tuesday-Blitz-September-05-2023"]
[Site "Chess.com"]
[Date "2023.09.05"]
[Round "10"]
[White "enkhtuul"]
[Black "Langua_Chess"]
[Result "1/2-1/2"]
[WhiteElo "2369"]
[BlackElo "2477"]
[TimeControl "180+1"]
[EndTime "9:53:51 PDT"]
[Termination "Game drawn by repetition"]

1. d4 {[%clk 0:03:00.9]} 1... d5 {[%clk 0:02:53.5]} 2. Nf3 {[%clk 0:02:59]} 2...
Nf6 {[%clk 0:02:51.2]} 3. c4 {[%clk 0:02:57.8]} 3... c6 {[%clk 0:02:49.5]} 4.
Qc2 {[%clk 0:02:55.1]} 4... dxc4 {[%clk 0:02:42.6]} 5. Qxc4 {[%clk 0:02:54]}
5... Bf5 {[%clk 0:02:37.4]} 6. g3 {[%clk 0:02:52.9]} 6... e6 {[%clk 0:02:33.9]}
7. Bg2 {[%clk 0:02:52.5]} 7... h6 {[%clk 0:02:17.8]} 8. O-O {[%clk 0:02:50.8]}
8... Be7 {[%clk 0:02:18.5]} 9. Nc3 {[%clk 0:02:50.1]} 9... O-O {[%clk
0:02:16.6]} 10. Ne5 {[%clk 0:02:49.7]} 10... Nbd7 {[%clk 0:02:13.4]} 11. Nxd7
{[%clk 0:02:49]} 11... Qxd7 {[%clk 0:02:08.9]} 12. e4 {[%clk 0:02:49]} 12... Bh7
{[%clk 0:02:05.1]} 13. a3 {[%clk 0:02:44.9]} 13... Rfd8 {[%clk 0:02:03.5]} 14.
Be3 {[%clk 0:02:43.1]} 14... Ng4 {[%clk 0:02:03.1]} 15. Rad1 {[%clk 0:02:34.1]}
15... Nxe3 {[%clk 0:02:02]} 16. fxe3 {[%clk 0:02:35]} 16... a5 {[%clk
0:01:55.2]} 17. e5 {[%clk 0:02:33.5]} 17... Rac8 {[%clk 0:01:38.5]} 18. b4
{[%clk 0:02:28.4]} 18... axb4 {[%clk 0:01:25.2]} 19. axb4 {[%clk 0:02:29.3]}
19... Ra8 {[%clk 0:01:24.6]} 20. b5 {[%clk 0:02:27.5]} 20... cxb5 {[%clk
0:01:21.5]} 21. Nxb5 {[%clk 0:02:27.1]} 21... Rdc8 {[%clk 0:01:16.6]} 22. Qe2
{[%clk 0:02:27]} 22... Rc2 {[%clk 0:01:13.2]} 23. Qf3 {[%clk 0:02:24.5]} 23...
Qxb5 {[%clk 0:00:55.5]} 24. Qxf7+ {[%clk 0:02:22.6]} 24... Kh8 {[%clk
0:00:56.3]} 25. Qxe7 {[%clk 0:02:21.5]} 25... Qe2 {[%clk 0:00:33.8]} 26. Qxb7
{[%clk 0:02:08.7]} 26... Raa2 {[%clk 0:00:24.3]} 27. Rf8+ {[%clk 0:01:44.2]}
27... Bg8 {[%clk 0:00:24.3]} 28. Rxg8+ {[%clk 0:01:44.3]} 28... Kxg8 {[%clk
0:00:25.2]} 29. Qb8+ {[%clk 0:01:41.7]} 29... Kh7 {[%clk 0:00:10.1]} 30. Be4+
{[%clk 0:01:40.4]} 30... g6 {[%clk 0:00:10.9]} 31. Qb7+ {[%clk 0:01:36.3]} 31...
Kh8 {[%clk 0:00:11.5]} 32. Qb8+ {[%clk 0:01:23.5]} 32... Kg7 {[%clk 0:00:11.7]}
33. Qb7+ {[%clk 0:01:20.6]} 33... Kh8 {[%clk 0:00:04.7]} 34. Qb8+ {[%clk
0:01:08.8]} 34... Kg7 {[%clk 0:00:05.3]} 35. Bxc2 {[%clk 0:01:02.3]} 35... Rxc2
{[%clk 0:00:03.3]} 36. Qb7+ {[%clk 0:01:00.6]} 36... Kh8 {[%clk 0:00:03.9]} 37.
Qa8+ {[%clk 0:00:56.3]} 37... Kg7 {[%clk 0:00:04.5]} 38. Qa7+ {[%clk 0:00:51.8]}
38... Kh8 {[%clk 0:00:04.7]} 39. Qb8+ {[%clk 0:00:51.8]} 39... Kg7 {[%clk
0:00:05]} 40. Qb7+ {[%clk 0:00:50]} 40... Kh8 {[%clk 0:00:05.5]} 41. Qb8+ {[%clk
0:00:48.1]} 41... Kg7 {[%clk 0:00:05.6]} 1/2-1/2

[Event "Early-Titled-Tuesday-Blitz-September-05-2023"]
[Site "Chess.com"]
[Date "2023.09.05"]
[Round "10"]
[White "SaiHanThiha"]
[Black "CFalcons8"]
[Result "1-0"]
[WhiteElo "2470"]
[BlackElo "2292"]
[TimeControl "180+1"]
[EndTime "9:53:56 PDT"]
[Termination "SaiHanThiha won on time"]

1. Nf3 {[%clk 0:03:00.9]} 1... Nf6 {[%clk 0:02:56.9]} 2. g3 {[%clk 0:03:01.4]}
2... d5 {[%clk 0:02:55.9]} 3. Bg2 {[%clk 0:03:01.5]} 3... Bf5 {[%clk 0:02:54]}
4. O-O {[%clk 0:03:01.4]} 4... e6 {[%clk 0:02:53]} 5. c4 {[%clk 0:03:02]} 5...
c6 {[%clk 0:02:51.5]} 6. Qb3 {[%clk 0:03:02.1]} 6... b6 {[%clk 0:02:48.4]} 7.
cxd5 {[%clk 0:02:18.8]} 7... exd5 {[%clk 0:02:49.3]} 8. d3 {[%clk 0:02:15.2]}
8... Nbd7 {[%clk 0:02:48]} 9. Nd4 {[%clk 0:02:03.9]} 9... Nc5 {[%clk 0:02:43.5]}
10. Qc2 {[%clk 0:01:58.9]} 10... Bd7 {[%clk 0:02:41]} 11. e4 {[%clk 0:01:55.3]}
11... dxe4 {[%clk 0:02:34.1]} 12. dxe4 {[%clk 0:01:56.2]} 12... Qc8 {[%clk
0:02:18.2]} 13. Nc3 {[%clk 0:01:44.9]} 13... Ne6 {[%clk 0:02:07.6]} 14. Nf5
{[%clk 0:01:42.8]} 14... g6 {[%clk 0:02:05.5]} 15. Re1 {[%clk 0:01:24.6]} 15...
Bc5 {[%clk 0:01:41.9]} 16. Bh6 {[%clk 0:01:21.2]} 16... Bf8 {[%clk 0:01:33.7]}
17. Qd2 {[%clk 0:01:01.4]} 17... Qc7 {[%clk 0:01:00.1]} 18. Bxf8 {[%clk
0:00:48.2]} 18... Kxf8 {[%clk 0:01:01]} 19. Qh6+ {[%clk 0:00:44.6]} 19... Ke8
{[%clk 0:00:56.5]} 20. Rad1 {[%clk 0:00:28.1]} 20... Rd8 {[%clk 0:00:16.5]} 21.
Qh4 {[%clk 0:00:17.6]} 21... Qe5 {[%clk 0:00:08.4]} 22. f4 {[%clk 0:00:14.7]}
22... Qc5+ {[%clk 0:00:07.2]} 23. Kh1 {[%clk 0:00:15.4]} 23... Ng8 {[%clk
0:00:02.9]} 24. Nd6+ {[%clk 0:00:11.4]} 24... Kf8 {[%clk 0:00:02.4]} 25. f5
{[%clk 0:00:11.1]} 1-0

[Event "Early-Titled-Tuesday-Blitz-September-05-2023"]
[Site "Chess.com"]
[Date "2023.09.05"]
[Round "10"]
[White "Grossboss19"]
[Black "thedjoker98"]
[Result "0-1"]
[WhiteElo "2506"]
[BlackElo "2627"]
[TimeControl "180+1"]
[EndTime "9:53:57 PDT"]
[Termination "thedjoker98 won by checkmate"]

1. Nf3 {[%clk 0:02:46.5]} 1... d5 {[%clk 0:02:58.6]} 2. d3 {[%clk 0:02:47.3]}
2... Nf6 {[%clk 0:02:58.3]} 3. g3 {[%clk 0:02:47.8]} 3... Bg4 {[%clk 0:02:58.3]}
4. Bg2 {[%clk 0:02:48.4]} 4... Nbd7 {[%clk 0:02:58.9]} 5. O-O {[%clk 0:02:48.9]}
5... e5 {[%clk 0:02:59.3]} 6. c3 {[%clk 0:02:45]} 6... c6 {[%clk 0:02:59.2]} 7.
Qc2 {[%clk 0:02:43.1]} 7... Qc7 {[%clk 0:02:58.5]} 8. e4 {[%clk 0:02:43.1]} 8...
dxe4 {[%clk 0:02:58.3]} 9. dxe4 {[%clk 0:02:44]} 9... a5 {[%clk 0:02:58.3]} 10.
h3 {[%clk 0:02:37.9]} 10... Bh5 {[%clk 0:02:58.1]} 11. Bg5 {[%clk 0:02:34.1]}
11... h6 {[%clk 0:02:55.5]} 12. Bxf6 {[%clk 0:02:33.4]} 12... Nxf6 {[%clk
0:02:56.4]} 13. Nbd2 {[%clk 0:02:33.6]} 13... Be7 {[%clk 0:02:55.1]} 14. a4
{[%clk 0:02:31.6]} 14... O-O {[%clk 0:02:55]} 15. Nh4 {[%clk 0:02:30.6]} 15...
Rfd8 {[%clk 0:02:49.5]} 16. g4 {[%clk 0:02:19.1]} 16... Bg6 {[%clk 0:02:25]} 17.
Nxg6 {[%clk 0:02:17.5]} 17... fxg6 {[%clk 0:02:25.9]} 18. Rad1 {[%clk
0:02:15.1]} 18... Nd7 {[%clk 0:02:13.1]} 19. Nf3 {[%clk 0:02:05.1]} 19... Nc5
{[%clk 0:02:11.1]} 20. Qe2 {[%clk 0:01:59.1]} 20... Kh7 {[%clk 0:02:06.9]} 21.
Qc4 {[%clk 0:01:52.9]} 21... b5 {[%clk 0:01:38.7]} 22. axb5 {[%clk 0:01:47.7]}
22... cxb5 {[%clk 0:01:39.6]} 23. Qxb5 {[%clk 0:01:47.6]} 23... Rab8 {[%clk
0:01:39.3]} 24. Qe2 {[%clk 0:01:46.4]} 24... Ne6 {[%clk 0:01:39]} 25. Rxd8
{[%clk 0:01:40.8]} 25... Rxd8 {[%clk 0:01:37.3]} 26. Qb5 {[%clk 0:01:37.3]}
26... Bf6 {[%clk 0:01:34.9]} 27. Qa4 {[%clk 0:01:31.7]} 27... Nf4 {[%clk
0:01:33]} 28. Rd1 {[%clk 0:01:30.9]} 28... Rb8 {[%clk 0:01:29.5]} 29. Qc2 {[%clk
0:01:17.5]} 29... Qb7 {[%clk 0:01:19.7]} 30. Rb1 {[%clk 0:01:14.3]} 30... g5
{[%clk 0:01:05.4]} 31. Bf1 {[%clk 0:01:11.8]} 31... Qd7 {[%clk 0:00:55.4]} 32.
Ne1 {[%clk 0:01:03.4]} 32... h5 {[%clk 0:00:54.4]} 33. f3 {[%clk 0:00:51.3]}
33... Bd8 {[%clk 0:00:41.9]} 34. Kh2 {[%clk 0:00:47.2]} 34... Bb6 {[%clk
0:00:36.6]} 35. Nd3 {[%clk 0:00:40.5]} 35... Rf8 {[%clk 0:00:19.7]} 36. Rd1
{[%clk 0:00:38]} 36... Qa7 {[%clk 0:00:18.9]} 37. Nxe5 {[%clk 0:00:30.6]} 37...
Bc7 {[%clk 0:00:18.2]} 38. Nd7 {[%clk 0:00:26.2]} 38... Ne2+ {[%clk 0:00:17.2]}
39. f4 {[%clk 0:00:20.4]} 39... Qg1# {[%clk 0:00:17]} 0-1

[Event "Early-Titled-Tuesday-Blitz-September-05-2023"]
[Site "Chess.com"]
[Date "2023.09.05"]
[Round "10"]
[White "ArmanGhevondyanchess"]
[Black "blitzking1729"]
[Result "0-1"]
[WhiteElo "2514"]
[BlackElo "2773"]
[TimeControl "180+1"]
[EndTime "9:54:01 PDT"]
[Termination "blitzking1729 won by resignation"]

1. Nf3 {[%clk 0:03:00.9]} 1... d5 {[%clk 0:02:56.7]} 2. d4 {[%clk 0:03:01.2]}
2... Nf6 {[%clk 0:02:55]} 3. g3 {[%clk 0:03:01.9]} 3... b5 {[%clk 0:02:52.7]} 4.
Bg2 {[%clk 0:03:02.2]} 4... Bb7 {[%clk 0:02:52.9]} 5. O-O {[%clk 0:03:03.1]}
5... Nbd7 {[%clk 0:02:53.3]} 6. Ne5 {[%clk 0:03:00.5]} 6... e6 {[%clk
0:02:50.5]} 7. Na3 {[%clk 0:03:00.3]} 7... Nxe5 {[%clk 0:02:47]} 8. dxe5 {[%clk
0:03:00.5]} 8... Nd7 {[%clk 0:02:47.5]} 9. Nxb5 {[%clk 0:02:51.7]} 9... Nxe5
{[%clk 0:02:46.9]} 10. Bf4 {[%clk 0:02:50.3]} 10... a6 {[%clk 0:02:43.8]} 11.
Bxe5 {[%clk 0:02:30]} 11... axb5 {[%clk 0:02:43.7]} 12. e4 {[%clk 0:02:23.4]}
12... dxe4 {[%clk 0:02:39]} 13. Qe2 {[%clk 0:02:23.4]} 13... Qd5 {[%clk
0:02:38.6]} 14. Bxc7 {[%clk 0:02:19.3]} 14... Be7 {[%clk 0:02:27.9]} 15. Rad1
{[%clk 0:01:52.5]} 15... Qc6 {[%clk 0:02:25.8]} 16. Be5 {[%clk 0:01:52.6]} 16...
O-O {[%clk 0:02:25.5]} 17. a3 {[%clk 0:01:46.7]} 17... f6 {[%clk 0:02:22.9]} 18.
Bc3 {[%clk 0:01:46.7]} 18... Bxa3 {[%clk 0:02:04.7]} 19. Bxf6 {[%clk 0:01:23.6]}
19... Rxf6 {[%clk 0:01:49.8]} 20. bxa3 {[%clk 0:01:23.6]} 20... Rxa3 {[%clk
0:01:49.8]} 21. Rd8+ {[%clk 0:01:18.9]} 21... Rf8 {[%clk 0:01:49.5]} 22. Qd2
{[%clk 0:01:16.2]} 22... Ra8 {[%clk 0:01:48.2]} 23. Rxa8 {[%clk 0:01:13.8]}
23... Rxa8 {[%clk 0:01:47]} 24. Re1 {[%clk 0:01:01.2]} 24... Qc4 {[%clk
0:01:40.2]} 25. Bf1 {[%clk 0:00:44]} 25... Qc5 {[%clk 0:01:40.1]} 26. Bg2 {[%clk
0:00:41.2]} 26... Qc4 {[%clk 0:01:27.3]} 27. Bf1 {[%clk 0:00:37.7]} 27... Qd5
{[%clk 0:01:27.3]} 28. Qe3 {[%clk 0:00:33.9]} 28... Rc8 {[%clk 0:01:24]} 29. c3
{[%clk 0:00:31.6]} 29... Qc5 {[%clk 0:01:21.6]} 30. Qxc5 {[%clk 0:00:23.5]}
30... Rxc5 {[%clk 0:01:22.5]} 31. Re3 {[%clk 0:00:24.1]} 31... Bc6 {[%clk
0:01:22.3]} 32. Bg2 {[%clk 0:00:22.8]} 32... Kf7 {[%clk 0:01:20.5]} 33. Bxe4
{[%clk 0:00:20.6]} 33... Bxe4 {[%clk 0:01:20]} 34. Rxe4 {[%clk 0:00:21.5]} 34...
Rxc3 {[%clk 0:01:20.3]} 35. Rh4 {[%clk 0:00:20.1]} 35... h6 {[%clk 0:01:20]} 36.
Rh5 {[%clk 0:00:20.6]} 36... b4 {[%clk 0:01:17]} 37. Rb5 {[%clk 0:00:20.5]}
37... b3 {[%clk 0:01:17.4]} 38. h4 {[%clk 0:00:21.3]} 38... g6 {[%clk
0:01:15.7]} 39. Kg2 {[%clk 0:00:21.6]} 39... h5 {[%clk 0:01:14.8]} 40. Rb7+
{[%clk 0:00:20.1]} 40... Kf6 {[%clk 0:01:14.9]} 41. Rb5 {[%clk 0:00:20.7]} 41...
Ke7 {[%clk 0:01:14.6]} 42. f3 {[%clk 0:00:17.5]} 42... Kd6 {[%clk 0:01:14.6]}
43. g4 {[%clk 0:00:17.4]} 43... Kc6 {[%clk 0:01:13.2]} 44. Rb8 {[%clk
0:00:16.4]} 44... Kc5 {[%clk 0:01:07.4]} 45. gxh5 {[%clk 0:00:13.7]} 45... gxh5
{[%clk 0:01:07.3]} 46. Kg3 {[%clk 0:00:14.3]} 46... e5 {[%clk 0:01:07.2]} 47.
Kf2 {[%clk 0:00:11.8]} 47... Kd4 {[%clk 0:01:04.8]} 48. Rd8+ {[%clk 0:00:08.8]}
48... Kc4 {[%clk 0:01:04.7]} 49. Rc8+ {[%clk 0:00:07.6]} 49... Kd3 {[%clk
0:01:05]} 50. Rb8 {[%clk 0:00:05.8]} 50... Kc2 {[%clk 0:01:04.7]} 0-1

[Event "Early-Titled-Tuesday-Blitz-September-05-2023"]
[Site "Chess.com"]
[Date "2023.09.05"]
[Round "10"]
[White "Legendinunknown"]
[Black "Yeremyan_ChessMate"]
[Result "1/2-1/2"]
[WhiteElo "2820"]
[BlackElo "2685"]
[TimeControl "180+1"]
[EndTime "9:54:05 PDT"]
[Termination "Game drawn by repetition"]

1. e4 {[%clk 0:03:00.9]} 1... Nf6 {[%clk 0:02:58.7]} 2. e5 {[%clk 0:03:00]} 2...
Nd5 {[%clk 0:02:59.2]} 3. d4 {[%clk 0:03:00.3]} 3... d6 {[%clk 0:02:59.3]} 4. c4
{[%clk 0:03:00.3]} 4... Nb6 {[%clk 0:02:59.9]} 5. f4 {[%clk 0:03:00.6]} 5...
dxe5 {[%clk 0:03:00.5]} 6. fxe5 {[%clk 0:03:01.5]} 6... Bf5 {[%clk 0:03:01.2]}
7. Be3 {[%clk 0:03:00.9]} 7... e6 {[%clk 0:03:01.8]} 8. Nc3 {[%clk 0:03:00.9]}
8... Nc6 {[%clk 0:03:02.4]} 9. Nf3 {[%clk 0:03:00.4]} 9... Bg4 {[%clk
0:03:02.6]} 10. Be2 {[%clk 0:02:58.2]} 10... Bxf3 {[%clk 0:03:03.2]} 11. gxf3
{[%clk 0:02:56.9]} 11... Qh4+ {[%clk 0:03:03.7]} 12. Bf2 {[%clk 0:02:57]} 12...
Qf4 {[%clk 0:03:04.4]} 13. c5 {[%clk 0:02:49.6]} 13... Nd7 {[%clk 0:03:03]} 14.
Qd2 {[%clk 0:02:46]} 14... Qxd2+ {[%clk 0:03:02.3]} 15. Kxd2 {[%clk 0:02:46.9]}
15... O-O-O {[%clk 0:03:03.2]} 16. Kc2 {[%clk 0:02:46.8]} 16... Ne7 {[%clk
0:03:00.3]} 17. f4 {[%clk 0:02:44.5]} 17... Nb8 {[%clk 0:03:00.5]} 18. Bf3
{[%clk 0:02:43.8]} 18... Nbc6 {[%clk 0:03:00.5]} 19. Rad1 {[%clk 0:02:43.9]}
19... Nb4+ {[%clk 0:03:00.8]} 20. Kb1 {[%clk 0:02:43.8]} 20... Nbd5 {[%clk
0:03:01.7]} 21. Nxd5 {[%clk 0:02:43.6]} 21... Nxd5 {[%clk 0:03:02.6]} 22. Bxd5
{[%clk 0:02:39.9]} 22... Rxd5 {[%clk 0:03:03.5]} 23. Be3 {[%clk 0:02:40.5]}
23... g6 {[%clk 0:03:04]} 24. Kc2 {[%clk 0:02:40.2]} 24... h5 {[%clk 0:03:04.7]}
25. b4 {[%clk 0:02:40]} 25... c6 {[%clk 0:03:04.6]} 26. Kd3 {[%clk 0:02:40.2]}
26... Be7 {[%clk 0:03:04.1]} 27. a4 {[%clk 0:02:39.7]} 27... Rhd8 {[%clk
0:03:04.7]} 28. Ke4 {[%clk 0:02:39.7]} 28... Kc7 {[%clk 0:03:02.4]} 29. Rb1
{[%clk 0:02:39.5]} 29... a6 {[%clk 0:03:01.1]} 30. Rb3 {[%clk 0:02:39]} 30...
f5+ {[%clk 0:02:57.4]} 31. Kf3 {[%clk 0:02:35.9]} 31... Rg8 {[%clk 0:02:47]} 32.
Rg1 {[%clk 0:02:30.6]} 32... Rdd8 {[%clk 0:02:47]} 33. b5 {[%clk 0:02:28.4]}
33... axb5 {[%clk 0:02:25.2]} 34. axb5 {[%clk 0:02:29.3]} 34... Ra8 {[%clk
0:02:24.7]} 35. Rgb1 {[%clk 0:02:26.6]} 35... Rgb8 {[%clk 0:02:23.7]} 36. Bd2
{[%clk 0:02:23.7]} 36... Kc8 {[%clk 0:02:12]} 37. Ke2 {[%clk 0:02:20.8]} 37...
Kc7 {[%clk 0:02:08.1]} 38. Kd3 {[%clk 0:02:16]} 38... Bh4 {[%clk 0:01:44.4]} 39.
h3 {[%clk 0:02:10]} 39... Be7 {[%clk 0:01:44.6]} 40. Be1 {[%clk 0:02:07.2]}
40... Bd8 {[%clk 0:01:44.6]} 41. bxc6 {[%clk 0:02:05.3]} 41... Kxc6 {[%clk
0:01:31.2]} 42. Rb6+ {[%clk 0:02:03.5]} 42... Bxb6 {[%clk 0:01:31]} 43. Rxb6+
{[%clk 0:02:04.4]} 43... Kd7 {[%clk 0:01:29]} 44. Rd6+ {[%clk 0:02:02.7]} 44...
Ke7 {[%clk 0:01:29.7]} 45. Bh4+ {[%clk 0:02:03.4]} 45... Kf7 {[%clk 0:01:30.4]}
46. Rd7+ {[%clk 0:02:03.9]} 46... Kf8 {[%clk 0:01:31.1]} 47. Bf6 {[%clk
0:02:00.5]} 47... Ra3+ {[%clk 0:01:30.6]} 48. Kc4 {[%clk 0:01:58.7]} 48... b5+
{[%clk 0:01:26.2]} 49. cxb6 {[%clk 0:01:56.9]} 49... Rxb6 {[%clk 0:01:26.9]} 50.
Rd8+ {[%clk 0:01:44]} 50... Kf7 {[%clk 0:01:26]} 51. Rd7+ {[%clk 0:01:44.7]}
51... Kf8 {[%clk 0:01:26.7]} 52. Rh7 {[%clk 0:01:42.2]} 52... Rxh3 {[%clk
0:01:07.9]} 53. Kc5 {[%clk 0:01:40.3]} 53... Ra6 {[%clk 0:01:07.2]} 54. Kb5
{[%clk 0:01:38.8]} 54... Ra2 {[%clk 0:01:01.7]} 55. Rh8+ {[%clk 0:01:35.4]}
55... Kf7 {[%clk 0:01:01.7]} 56. Rh7+ {[%clk 0:01:35.7]} 56... Kf8 {[%clk
0:01:02.4]} 57. d5 {[%clk 0:01:35.3]} 57... Rb2+ {[%clk 0:00:46.6]} 58. Kc5
{[%clk 0:01:33]} 58... Rc3+ {[%clk 0:00:31.6]} 59. Kd4 {[%clk 0:01:31.7]} 59...
Rbb3 {[%clk 0:00:32.3]} 60. Rh8+ {[%clk 0:01:25.4]} 60... Kf7 {[%clk 0:00:32]}
61. Rh7+ {[%clk 0:01:25.6]} 61... Kf8 {[%clk 0:00:32.4]} 62. dxe6 {[%clk
0:01:25]} 62... Rd3+ {[%clk 0:00:31.3]} 63. Kc5 {[%clk 0:01:21.5]} 63... Rbc3+
{[%clk 0:00:32.1]} 64. Kb6 {[%clk 0:01:19.5]} 64... Rb3+ {[%clk 0:00:31.4]} 65.
Kc6 {[%clk 0:01:16.9]} 65... Rbc3+ {[%clk 0:00:27.7]} 66. Kb5 {[%clk 0:01:16.7]}
66... Rb3+ {[%clk 0:00:28.4]} 67. Kc5 {[%clk 0:01:16.8]} 67... Rbc3+ {[%clk
0:00:28.7]} 68. Kb4 {[%clk 0:01:16.2]} 68... Rb3+ {[%clk 0:00:29.1]} 69. Kc5
{[%clk 0:01:17.1]} 1/2-1/2

[Event "Early-Titled-Tuesday-Blitz-September-05-2023"]
[Site "Chess.com"]
[Date "2023.09.05"]
[Round "10"]
[White "SashaKuzhilniy"]
[Black "FormerProdigy"]
[Result "0-1"]
[WhiteElo "2644"]
[BlackElo "2905"]
[TimeControl "180+1"]
[EndTime "9:54:07 PDT"]
[Termination "FormerProdigy won by resignation"]

1. e4 {[%clk 0:03:00.9]} 1... c5 {[%clk 0:02:59.8]} 2. Nf3 {[%clk 0:03:00.9]}
2... d6 {[%clk 0:03:00.3]} 3. d4 {[%clk 0:03:01.3]} 3... cxd4 {[%clk 0:03:01.2]}
4. Nxd4 {[%clk 0:03:01.9]} 4... Nf6 {[%clk 0:03:01.8]} 5. Nc3 {[%clk 0:03:02.5]}
5... a6 {[%clk 0:03:02.3]} 6. Bg5 {[%clk 0:03:02.3]} 6... Nbd7 {[%clk
0:03:02.4]} 7. Bc4 {[%clk 0:03:02.1]} 7... Qb6 {[%clk 0:03:00.5]} 8. Bb3 {[%clk
0:03:01.1]} 8... e6 {[%clk 0:02:58]} 9. Bxf6 {[%clk 0:03:01.3]} 9... Nxf6 {[%clk
0:02:58.9]} 10. Qd2 {[%clk 0:03:01.2]} 10... Nd7 {[%clk 0:02:56.4]} 11. O-O-O
{[%clk 0:03:00.9]} 11... Nc5 {[%clk 0:02:56.7]} 12. f4 {[%clk 0:02:55.8]} 12...
Bd7 {[%clk 0:02:53]} 13. Kb1 {[%clk 0:02:44.5]} 13... O-O-O {[%clk 0:02:50.4]}
14. f5 {[%clk 0:02:39.8]} 14... Be7 {[%clk 0:02:48.9]} 15. g4 {[%clk 0:02:22.2]}
15... Bf6 {[%clk 0:02:33.1]} 16. Rhe1 {[%clk 0:02:21.2]} 16... h6 {[%clk
0:02:21.8]} 17. Nf3 {[%clk 0:02:12.4]} 17... Bc6 {[%clk 0:02:15.2]} 18. h4
{[%clk 0:02:08.8]} 18... Kb8 {[%clk 0:02:06.5]} 19. fxe6 {[%clk 0:01:44.9]}
19... fxe6 {[%clk 0:02:07.4]} 20. g5 {[%clk 0:01:43.8]} 20... hxg5 {[%clk
0:01:50.1]} 21. hxg5 {[%clk 0:01:42.5]} 21... Bxc3 {[%clk 0:01:50.3]} 22. Qxc3
{[%clk 0:01:43.4]} 22... Nxe4 {[%clk 0:01:50.8]} 23. Qxg7 {[%clk 0:01:38.5]}
23... Nf2 {[%clk 0:01:49.8]} 24. Rxd6 {[%clk 0:01:26.7]} 24... Rxd6 {[%clk
0:01:30.4]} 25. Qxh8+ {[%clk 0:01:26.5]} 25... Ka7 {[%clk 0:01:31.3]} 26. Qc3
{[%clk 0:00:59.9]} 26... Ne4 {[%clk 0:01:02.5]} 27. Qe5 {[%clk 0:00:52.4]} 27...
Qf2 {[%clk 0:00:52.1]} 28. a3 {[%clk 0:00:08.9]} 28... Qxf3 {[%clk 0:00:52]} 29.
g6 {[%clk 0:00:09.3]} 29... Qg2 {[%clk 0:00:21.2]} 30. g7 {[%clk 0:00:06.3]}
30... Rd7 {[%clk 0:00:20.5]} 31. Bxe6 {[%clk 0:00:04.3]} 31... Rxg7 {[%clk
0:00:17.7]} 32. Qd4+ {[%clk 0:00:04.5]} 32... b6 {[%clk 0:00:18.3]} 33. Bd5
{[%clk 0:00:02.2]} 33... Bxd5 {[%clk 0:00:17.5]} 34. Qxd5 {[%clk 0:00:03.1]}
34... Nc3+ {[%clk 0:00:17.3]} 35. bxc3 {[%clk 0:00:03.3]} 35... Qxd5 {[%clk
0:00:18.2]} 0-1